bitfinex/quotes_BTCUSD_20250515
["timestamp","ask_amount","ask_price","bid_price","bid_amount"]
[1747285291075,0.19438235,102890.0,102880.0,0.21498243]
[1747285291289,0.19438235,102890.0,102880.0,0.24718243]
[1747285291907,0.01943765,102890.0,102880.0,0.61634109]
[1747285292110,0.23325756,102890.0,102880.0,0.5969022]
[1747285292460,0.23325756,102890.0,102880.0,0.5809022]
[1747285292919,0.22353911,102890.0,102880.0,0.5647022]
[1747285293253,0.22353911,102890.0,102880.0,0.55484088]
[1747285294315,0.22353911,102890.0,102880.0,0.96594088]
[1747285295966,0.22353911,102890.0,102880.0,0.97566056]
[1747285297646,0.01604116,102900.0,102890.0,0.01943775]
[1747285297793,0.02929444,102900.0,102890.0,0.96581888]
[1747285297995,0.21394029,102900.0,102890.0,0.70952]
[1747285298192,0.21394029,102900.0,102890.0,0.90390235]
[1747285298193,0.23024029,102900.0,102890.0,0.90390235]
[1747285298413,0.23024029,102900.0,102890.0,0.54410127]
[1747285298613,0.24624029,102900.0,102890.0,0.52472]
[1747285298816,0.24624029,102900.0,102890.0,0.52572]
[1747285300032,0.24624029,102900.0,102890.0,0.52472]
[1747285300253,0.24624029,102900.0,102890.0,0.52572]
[1747285301440,0.24624029,102900.0,102890.0,0.341]
[1747285301888,0.34354969,102900.0,102890.0,0.001]
[1747285310335,0.58219185,102900.0,102890.0,0.001]
[1747285310544,0.71326969,102900.0,102890.0,0.001]
[1747285312218,0.71426969,102900.0,102890.0,0.001]
[1747285312603,0.22966148,102870.0,102860.0,0.34]
[1747285313905,0.22966148,102870.0,102860.0,0.348]
[1747285318478,0.24486148,102870.0,102860.0,0.348]
[1747285318692,0.34217088,102870.0,102860.0,0.008]
[1747285322473,0.34247088,102870.0,102860.0,0.008]
[1747285325771,0.34247088,102870.0,102860.0,0.004]
[1747285325922,0.34247088,102870.0,102860.0,0.006]
[1747285326362,0.34247088,102870.0,102860.0,0.002]
[1747285327671,0.34247088,102870.0,102860.0,0.004]
[1747285332465,0.34247088,102870.0,102860.0,0.01387199]
[1747285332670,0.34247088,102870.0,102860.0,0.004]
[1747285332899,0.34247088,102870.0,102860.0,0.01365387]
[1747285333119,0.34247088,102870.0,102860.0,0.004]
[1747285335077,0.52727088,102870.0,102860.0,0.002]
[1747285335306,0.21390306,102850.0,102840.0,0.52492]
[1747285335532,0.24530306,102850.0,102840.0,0.52492]
[1747285336593,0.2453514,102850.0,102840.0,0.53451155]
[1747285336807,0.2301514,102850.0,102840.0,0.53651155]
[1747285337241,0.2139514,102850.0,102840.0,0.53651155]
[1747285337451,0.2139514,102850.0,102840.0,0.35159155]
[1747285338041,0.2139514,102850.0,102840.0,0.35359155]
[1747285344320,0.2139514,102850.0,102840.0,0.36879155]
[1747285344527,0.2139514,102850.0,102840.0,0.38379155]
[1747285345788,0.2139514,102850.0,102840.0,0.5782684]
[1747285346021,0.20422898,102850.0,102840.0,0.38379155]
[1747285347874,0.20422898,102850.0,102840.0,0.39827335]
[1747285349533,0.0292156,102850.0,102840.0,0.80648058]
[1747285349736,0.23339643,102850.0,102840.0,0.7967574]
[1747285350089,0.22367429,102850.0,102840.0,0.7967574]
[1747285351581,0.20422917,102850.0,102840.0,0.99393335]
[1747285351786,0.20422917,102850.0,102840.0,1.20785769]
[1747285356727,0.20422917,102850.0,102840.0,1.39261769]
[1747285357733,0.19450628,102850.0,102840.0,1.17869335]
[1747285360898,0.19450628,102850.0,102840.0,1.18841719]
[1747285362786,0.19450628,102850.0,102840.0,1.14849335]
[1747285363000,0.22520628,102850.0,102840.0,1.14797335]
[1747285363211,0.22520628,102850.0,102840.0,0.77917335]
[1747285363424,0.22520628,102850.0,102840.0,0.36807335]
[1747285364467,0.22520628,102850.0,102840.0,0.35359155]
[1747285364900,0.32251568,102850.0,102840.0,0.01359155]
[1747285366241,0.32251568,102850.0,102840.0,0.01159155]
[1747285366670,0.32251568,102850.0,102840.0,0.00959155]
[1747285367003,0.2353005,102840.0,102830.0,0.35552278]
[1747285368501,0.2353005,102840.0,102830.0,0.35752278]
[1747285369248,0.2353005,102840.0,102830.0,0.35952278]
[1747285369249,0.2198005,102840.0,102830.0,0.35952278]
[1747285369449,0.21392405,102840.0,102830.0,0.61479195]
[1747285369652,0.01944626,102840.0,102830.0,0.73636632]
[1747285369878,0.19450628,102850.0,102840.0,0.55007685]
[1747285369879,0.2139514,102850.0,102840.0,0.55007685]
[1747285370032,0.22367429,102850.0,102840.0,0.58462424]
[1747285370237,0.22367429,102850.0,102840.0,0.76869378]
[1747285370457,0.22367429,102850.0,102840.0,0.7881406]
[1747285370669,0.22367429,102850.0,102840.0,0.77841733]
[1747285370911,0.22367429,102850.0,102840.0,0.79268183]
[1747285371120,0.22367429,102850.0,102840.0,0.79368183]
[1747285372423,0.22367429,102850.0,102840.0,1.20478183]
[1747285372644,0.22367429,102850.0,102840.0,1.38930183]
[1747285372825,0.21395187,102850.0,102840.0,1.38930183]
[1747285377055,0.21395187,102850.0,102840.0,1.36447828]
[1747285377252,0.19450628,102850.0,102840.0,1.15440143]
[1747285377673,0.19450628,102850.0,102840.0,1.35860202]
[1747285379514,0.19450628,102850.0,102840.0,1.14467759]
[1747285379721,0.22700628,102850.0,102840.0,1.14467759]
[1747285379923,0.22700628,102850.0,102840.0,0.96015759]
[1747285380135,0.22700628,102850.0,102840.0,0.77587759]
[1747285380287,0.22700628,102850.0,102840.0,0.76161309]
[1747285380691,0.32431568,102850.0,102840.0,0.42161309]
[1747285383137,0.32431568,102850.0,102840.0,0.4121]
[1747285384430,0.32431568,102850.0,102840.0,0.001]
[1747285398248,0.19450628,102850.0,102840.0,0.001]
[1747285398561,0.20422851,102850.0,102840.0,0.76078059]
[1747285398790,0.01949346,102850.0,102840.0,0.96462761]
[1747285398965,0.2139514,102850.0,102840.0,0.96462761]
[1747285399649,0.20422917,102850.0,102840.0,0.95490424]
[1747285400996,4.834e-05,102850.0,102840.0,1.49730113]
[1747285401403,0.00977038,102850.0,102840.0,1.51211647]
[1747285401604,0.01949261,102850.0,102840.0,1.51211647]
[1747285402060,0.01949261,102850.0,102840.0,1.51111647]
[1747285402061,0.00977038,102850.0,102840.0,1.51111647]
[1747285402261,0.01949261,102850.0,102840.0,1.51311647]
[1747285402906,0.01949261,102850.0,102840.0,1.51511647]
[1747285403706,4.834e-05,102850.0,102840.0,1.51511647]
[1747285403917,0.00977057,102850.0,102840.0,1.51511647]
[1747285404296,4.834e-05,102850.0,102840.0,1.51511647]
[1747285404593,0.00977048,102850.0,102840.0,1.51511647]
[1747285404793,4.834e-05,102850.0,102840.0,1.51511647]
[1747285404995,0.01949252,102850.0,102840.0,1.51511647]
[1747285405412,0.04865997,102850.0,102840.0,1.51511647]
[1747285405653,0.04866073,102850.0,102840.0,1.33071647]
[1747285405910,0.2139514,102850.0,102840.0,1.13863534]
[1747285406111,0.2298514,102850.0,102840.0,1.36228323]
[1747285406476,0.2298514,102850.0,102840.0,1.34283603]
[1747285406701,0.2298514,102850.0,102840.0,1.36228342]
[1747285406955,0.23622898,102850.0,102840.0,0.95423534]
[1747285407491,0.23622898,102850.0,102840.0,0.97368292]
[1747285407703,0.23622898,102850.0,102840.0,1.16815977]
[1747285408310,0.23622898,102850.0,102840.0,1.18270062]
[1747285408788,0.22650628,102850.0,102840.0,0.97850003]
[1747285409003,0.22650628,102850.0,102840.0,0.96877619]
[1747285409141,0.22650628,102850.0,102840.0,1.17297678]
[1747285409338,0.22650628,102850.0,102840.0,0.96877619]
[1747285409753,0.22650628,102850.0,102840.0,0.344]
[1747285410352,0.22650628,102850.0,102840.0,0.004]
[1747285411332,0.32381568,102850.0,102840.0,0.004]
[1747285415043,0.2042005,102840.0,102830.0,0.35552278]
[1747285415265,0.2358005,102840.0,102830.0,0.01552278]
[1747285415685,0.3331099,102840.0,102830.0,0.01552278]
[1747285416126,0.3331099,102840.0,102830.0,0.01752278]
[1747285417132,0.3331099,102840.0,102830.0,0.01952278]
[1747285426751,0.3331099,102840.0,102830.0,0.01752278]
[1747285426952,0.3331099,102840.0,102830.0,0.01552278]
[1747285427214,0.3351099,102840.0,102830.0,0.01552278]
[1747285436647,0.40252773,102840.0,102830.0,0.01552278]
[1747285437602,0.00972762,102800.0,102790.0,1.060105]
[1747285437803,0.20428014,102800.0,102790.0,0.18408]
[1747285438010,0.20428014,102800.0,102790.0,0.19862085]
[1747285438211,0.20429983,102790.0,102780.0,0.07511174]
[1747285438466,0.20429983,102790.0,102780.0,0.57055045]
[1747285438663,0.20429983,102790.0,102780.0,0.07511174]
[1747285438873,0.20429983,102790.0,102780.0,0.59967556]
[1747285439078,0.20429983,102790.0,102780.0,0.61421641]
[1747285439507,0.20429983,102790.0,102780.0,0.43013641]
[1747285439722,0.20429983,102790.0,102780.0,0.09013641]
[1747285439923,0.20429983,102790.0,102780.0,0.43013641]
[1747285440358,0.20429983,102790.0,102780.0,0.43413641]
[1747285440798,0.20429983,102790.0,102780.0,0.43813641]
[1747285442735,0.20429983,102790.0,102780.0,0.42293641]
[1747285444695,0.20429983,102790.0,102780.0,0.40703641]
[1747285444903,0.20429983,102790.0,102780.0,0.36302467]
[1747285445304,0.21939983,102790.0,102780.0,0.00848382]
[1747285445515,0.23529983,102790.0,102780.0,0.00848382]
[1747285445931,0.20429983,102790.0,102780.0,0.00848382]
[1747285446175,0.21969983,102790.0,102780.0,0.00848382]
[1747285446761,0.21969983,102790.0,102780.0,0.00448382]
[1747285446966,0.21969983,102790.0,102780.0,0.00548382]
[1747285447176,0.21969983,102790.0,102780.0,0.00148382]
[1747285447379,0.21969983,102790.0,102780.0,0.00248382]
[1747285448739,0.23619983,102790.0,102780.0,0.00248382]
[1747285448940,0.33350923,102790.0,102780.0,0.00248382]
[1747285451409,0.33350923,102790.0,102780.0,0.01241973]
[1747285452411,0.33350923,102790.0,102780.0,0.00248382]
[1747285455666,0.33350923,102790.0,102780.0,0.01246553]
[1747285473107,0.33350923,102790.0,102780.0,0.00248382]
[1747285475486,0.33350923,102790.0,102780.0,0.00148382]
[1747285475625,0.33350923,102790.0,102780.0,0.00048382]
[1747285475983,0.33550923,102790.0,102780.0,0.00048382]
[1747285480813,0.70310923,102790.0,102780.0,0.00048382]
[1747285481346,0.73040842,102790.0,102780.0,0.00048382]
[1747285481580,0.82771782,102790.0,102780.0,0.00048382]
[1747285481790,0.82571782,102790.0,102780.0,0.00048382]
[1747285481939,0.82771782,102790.0,102780.0,0.00048382]
[1747285482149,0.82971782,102790.0,102780.0,0.00048382]
[1747285482626,0.80241863,102790.0,102780.0,0.00048382]
[1747285483172,0.70510923,102790.0,102780.0,0.00048382]
[1747285486745,0.76344923,102790.0,102780.0,0.00048382]
[1747285486972,0.70510923,102790.0,102780.0,0.00048382]
[1747285493874,0.60510923,102790.0,102780.0,0.00048382]
[1747285494871,0.61483761,102790.0,102780.0,0.00048382]
[1747285495071,0.71214701,102790.0,102780.0,0.00048382]
[1747285499380,1.05214701,102790.0,102780.0,0.00048382]
[1747285499580,1.12048701,102790.0,102780.0,0.00048382]
[1747285499908,1.14773685,102790.0,102780.0,0.00048382]
[1747285500251,1.14573685,102790.0,102780.0,0.00048382]
[1747285500452,1.14373685,102790.0,102780.0,0.00048382]
[1747285500681,1.14973685,102790.0,102780.0,0.00048382]
[1747285500851,1.15273685,102790.0,102780.0,0.00048382]
[1747285501050,1.2795777,102790.0,102780.0,0.00048382]
[1747285501247,1.2695777,102790.0,102780.0,0.00048382]
[1747285501687,1.71932143,102790.0,102780.0,0.00048382]
[1747285504479,1.6898177,102790.0,102780.0,0.00048382]
[1747285504994,1.6890977,102790.0,102780.0,0.00048382]
[1747285508640,1.69872891,102790.0,102780.0,0.00048382]
[1747285519217,0.21409041,102760.0,102750.0,0.0157]
[1747285519440,0.21409041,102760.0,102740.0,0.07316997]
[1747285519441,0.20437937,102750.0,102740.0,0.07316997]
[1747285519652,0.30168877,102750.0,102740.0,0.07326395]
[1747285520762,0.5006707,102750.0,102740.0,0.07326395]
[1747285520937,0.3166307,102750.0,102740.0,0.07326395]
[1747285521138,0.3166307,102750.0,102740.0,0.07626395]
[1747285522013,0.3166307,102750.0,102740.0,0.08618622]
[1747285522221,0.3166307,102750.0,102740.0,0.09018622]
[1747285522987,0.30168877,102750.0,102740.0,0.09018622]
[1747285530399,0.0973094,102750.0,102740.0,0.09018622]
[1747285530586,0.30412215,102750.0,102740.0,0.09018622]
[1747285530802,0.30168877,102750.0,102740.0,0.09018622]
[1747285536073,0.2238437,102750.0,102740.0,0.29458566]
[1747285536255,0.21411163,102750.0,102740.0,0.10472707]
[1747285536378,0.20437946,102750.0,102740.0,0.10472707]
[1747285542051,0.19462826,102760.0,102750.0,0.24038805]
[1747285542284,0.19462826,102760.0,102750.0,0.25012041]
[1747285542496,0.19462826,102760.0,102750.0,0.04574085]
[1747285543817,0.19462826,102760.0,102750.0,0.04674085]
[1747285544714,0.19462826,102760.0,102750.0,0.04874085]
[1747285544939,0.19462826,102760.0,102750.0,0.05847321]
[1747285546453,0.19462826,102760.0,102750.0,0.04874085]
[1747285546692,0.21409089,102760.0,102750.0,0.25458745]
[1747285546934,0.21409089,102760.0,102750.0,0.25312022]
[1747285549057,0.21409089,102760.0,102750.0,0.24338805]
[1747285549273,0.20435967,102760.0,102750.0,0.24338805]
[1747285549876,0.20435967,102760.0,102750.0,0.25312041]
[1747285550274,0.20435967,102760.0,102750.0,0.05847321]
[1747285550478,0.19462826,102760.0,102750.0,0.05847321]
[1747285552244,0.19462826,102760.0,102750.0,0.27405197]
[1747285552447,0.19462826,102760.0,102750.0,0.26285267]
[1747285552655,0.19462826,102760.0,102750.0,0.04874085]
[1747285553171,0.19462826,102760.0,102750.0,0.05847321]
[1747285556855,0.19462826,102760.0,102750.0,0.04874085]
[1747285557185,0.19462826,102760.0,102750.0,0.03304085]
[1747285557804,0.19462826,102760.0,102750.0,0.01754085]
[1747285558223,0.19462826,102760.0,102750.0,0.03364085]
[1747285559268,0.19462826,102760.0,102750.0,0.04954085]
[1747285562825,0.19462826,102760.0,102750.0,0.03364085]
[1747285565844,0.19462826,102760.0,102750.0,0.01754085]
[1747285566084,0.20962826,102760.0,102750.0,0.01754085]
[1747285566541,0.22532826,102760.0,102750.0,0.003]
[1747285566739,0.32263766,102760.0,102750.0,0.003]
[1747285567783,0.50783766,102760.0,102750.0,0.003]
[1747285583723,0.50839766,102760.0,102750.0,0.003]
[1747285593115,0.32263766,102760.0,102750.0,0.003]
[1747285593290,0.69355766,102760.0,102750.0,0.003]
[1747285598261,0.20443905,102720.0,102710.0,0.2763515]
[1747285598469,0.20443905,102720.0,102710.0,0.07617065]
[1747285598672,0.20443905,102720.0,102710.0,0.07665393]
[1747285598932,0.20443905,102720.0,102710.0,0.09119478]
[1747285599808,0.20443905,102720.0,102710.0,0.09719478]
[1747285600150,0.20543905,102720.0,102710.0,0.44419478]
[1747285600759,0.20543905,102720.0,102710.0,0.44409478]
[1747285603314,0.20543905,102720.0,102710.0,0.42799478]
[1747285603709,0.20543905,102720.0,102710.0,0.41189478]
[1747285603972,0.20543905,102720.0,102710.0,0.05735393]
[1747285603973,0.30274845,102720.0,102710.0,0.05735393]
[1747285604144,0.31914845,102720.0,102710.0,0.05735393]
[1747285604318,0.31814845,102720.0,102710.0,0.05035393]
[1747285604698,0.31814845,102720.0,102710.0,0.05535393]
[1747285604699,0.31914845,102720.0,102710.0,0.05535393]
[1747285605034,0.5722318,102720.0,102710.0,0.05535393]
[1747285605335,0.5722318,102720.0,102710.0,0.04935393]
[1747285605677,0.5722318,102720.0,102710.0,0.05335393]
[1747285608139,0.51834845,102720.0,102710.0,0.04835393]
[1747285612209,0.33314845,102720.0,102710.0,0.04835393]
[1747285612422,0.51790845,102720.0,102710.0,0.04835393]
[1747285613073,0.85790845,102720.0,102710.0,0.04835393]
[1747285614096,0.85790845,102720.0,102710.0,0.04735393]
[1747285614273,0.85890845,102720.0,102710.0,0.04735393]
[1747285614484,0.95621785,102720.0,102710.0,0.04735393]
[1747285614893,0.95458417,102720.0,102710.0,0.04735393]
[1747285615269,0.95458417,102720.0,102710.0,0.04435393]
[1747285615561,0.95558417,102720.0,102710.0,0.04435393]
[1747285615975,0.77082417,102720.0,102710.0,0.04435393]
[1747285616172,1.14118417,102720.0,102710.0,0.04435393]
[1747285617013,1.04387477,102720.0,102710.0,0.04435393]
[1747285621037,1.04387477,102720.0,102710.0,0.04449646]
[1747285623158,1.04359477,102720.0,102710.0,0.04449646]
[1747285623618,0.67351477,102720.0,102710.0,0.04449646]
[1747285623849,0.30211477,102720.0,102710.0,0.07539646]
[1747285624301,0.30211477,102720.0,102710.0,0.06019646]
[1747285624516,0.30211477,102720.0,102710.0,0.04449646]
[1747285625175,0.30211477,102720.0,102710.0,0.06059646]
[1747285625626,0.30211477,102720.0,102710.0,0.07679646]
[1747285627381,0.30211477,102720.0,102710.0,0.06059646]
[1747285628160,0.30211477,102720.0,102710.0,0.04449646]
[1747285628750,0.30211477,102720.0,102710.0,0.07629646]
[1747285629181,0.30211477,102720.0,102710.0,0.06069646]
[1747285629796,0.30211477,102720.0,102710.0,0.04449646]
[1747285630902,0.30211477,102720.0,102710.0,0.07589646]
[1747285631321,0.30211477,102720.0,102710.0,0.04449646]
[1747285632789,0.30211477,102720.0,102710.0,0.07629646]
[1747285634806,0.20480537,102720.0,102710.0,0.09083731]
[1747285635016,0.20480537,102720.0,102710.0,0.09230641]
[1747285635572,0.20280537,102720.0,102710.0,0.09230641]
[1747285635769,0.20280537,102720.0,102710.0,0.09330641]
[1747285636001,0.20280537,102720.0,102710.0,0.09430641]
[1747285638016,0.20280537,102720.0,102710.0,0.09283731]
[1747285638641,0.30011477,102720.0,102710.0,0.04649646]
[1747285638841,0.33161477,102720.0,102710.0,0.04649646]
[1747285640685,0.42892417,102720.0,102710.0,0.04649646]
[1747285643142,0.33161477,102720.0,102710.0,0.04649646]
[1747285649774,0.51733477,102720.0,102710.0,0.04649646]
[1747285649976,0.33161477,102720.0,102710.0,0.04649646]
[1747285650294,0.70293477,102720.0,102710.0,0.04649646]
[1747285656273,0.33161477,102720.0,102710.0,0.04649646]
[1747285656486,0.70281477,102720.0,102710.0,0.04649646]
[1747285658029,0.77092159,102720.0,102710.0,0.04649646]
[1747285659392,0.77072159,102720.0,102710.0,0.04649646]
[1747285663357,1.11072159,102720.0,102710.0,0.04649646]
[1747285664774,1.04261477,102720.0,102710.0,0.04649646]
[1747285665502,0.67161477,102720.0,102710.0,0.04649646]
[1747285665724,0.85749477,102720.0,102710.0,0.04649646]
[1747285666689,0.91583477,102720.0,102710.0,0.04649646]
[1747285673044,0.72995477,102720.0,102710.0,0.04649646]
[1747285673315,1.19457876,102720.0,102710.0,0.04649646]
[1747285673513,0.82341876,102720.0,102710.0,0.04649646]
[1747285673691,1.19449876,102720.0,102710.0,0.04649646]
[1747285674298,1.2217653,102720.0,102710.0,0.04649646]
[1747285681634,1.2210453,102720.0,102710.0,0.04649646]
[1747285686143,0.8506853,102720.0,102710.0,0.04649646]
[1747285686479,1.2208853,102720.0,102710.0,0.04649646]
[1747285696860,1.2308853,102720.0,102710.0,0.04649646]
[1747285697107,0.64509896,102710.0,102700.0,0.02345141]
[1747285697313,0.8669843,102710.0,102700.0,0.02345141]
[1747285697931,0.9694843,102710.0,102700.0,0.02345141]
[1747285698157,0.9794843,102710.0,102700.0,0.02345141]
[1747285698363,1.06137589,102710.0,102700.0,0.02345141]
[1747285699207,1.06237589,102710.0,102700.0,0.02345141]
[1747285699618,1.2482643,102710.0,102700.0,0.02345141]
[1747285699814,0.8789843,102710.0,102700.0,0.02345141]
[1747285700148,1.2493043,102710.0,102700.0,0.02345141]
[1747285700816,0.8789843,102710.0,102700.0,0.02345141]
[1747285701092,1.2495443,102710.0,102700.0,0.02345141]
[1747285709402,1.6701443,102710.0,102700.0,0.02345141]
[1747285710892,1.67468515,102710.0,102700.0,0.02345141]
[1747285711739,1.30312515,102710.0,102700.0,0.02345141]
[1747285711943,1.67580515,102710.0,102700.0,0.02345141]
[1747285712125,1.67480515,102710.0,102700.0,0.02345141]
[1747285712547,1.67680515,102710.0,102700.0,0.02345141]
[1747285714173,1.3015843,102710.0,102700.0,0.02345141]
[1747285714380,1.6721043,102710.0,102700.0,0.02345141]
[1747285728292,0.29301886,102700.0,102690.0,0.05446621]
[1747285728477,0.5149042,102700.0,102690.0,0.05446621]
[1747285729367,0.5159042,102700.0,102690.0,0.05446621]
[1747285730027,0.5008042,102700.0,102690.0,0.05446621]
[1747285730699,0.5164042,102700.0,102690.0,0.05446621]
[1747285730826,0.5164042,102700.0,102690.0,0.05546621]
[1747285736539,0.5264042,102700.0,102690.0,0.05546621]
[1747285737625,0.6289042,102700.0,102690.0,0.05546621]
[1747285738255,0.6279042,102700.0,102690.0,0.05546621]
[1747285738518,0.6299042,102700.0,102690.0,0.05446621]
[1747285738982,0.6319042,102700.0,102690.0,0.05446621]
[1747285740206,1.0008242,102700.0,102690.0,0.05446621]
[1747285747448,0.8983242,102700.0,102690.0,0.05446621]
[1747285751380,1.3190042,102700.0,102690.0,0.05446621]
[1747285752055,1.3034042,102700.0,102690.0,0.05446621]
[1747285753500,1.3191042,102700.0,102690.0,0.05446621]
[1747285756419,0.02922675,102640.0,102630.0,0.49750979]
[1747285756675,0.20457847,102650.0,102630.0,0.49750979]
[1747285756882,0.20457847,102650.0,102630.0,0.52774179]
[1747285757846,0.02922665,102640.0,102630.0,0.50825593]
[1747285758053,0.03022665,102640.0,102630.0,0.51725593]
[1747285758452,0.03022665,102640.0,102630.0,0.87179678]
[1747285758661,0.03022665,102640.0,102630.0,0.87079678]
[1747285758865,0.03996934,102640.0,102630.0,0.87079678]
[1747285759717,0.04971194,102640.0,102630.0,0.87079678]
[1747285759937,0.24456774,102640.0,102630.0,0.87979716]
[1747285760204,0.03997001,102640.0,102630.0,0.88954023]
[1747285760340,0.03997001,102640.0,102630.0,0.88054023]
[1747285760742,0.04097001,102640.0,102630.0,0.88954023]
[1747285760947,0.02148434,102640.0,102630.0,0.88954023]
[1747285761150,0.04096906,102640.0,102630.0,0.88954023]
[1747285767304,0.05071175,102640.0,102630.0,0.88954023]
[1747285767681,0.05071175,102640.0,102630.0,0.86030823]
[1747285770567,0.04096896,102640.0,102630.0,0.86030823]
[1747285770877,0.05071156,102640.0,102630.0,0.86030823]
[1747285777900,0.05071232,102640.0,102630.0,0.86030823]
[1747285788952,0.05071299,102640.0,102630.0,0.86030823]
[1747285791386,0.05071299,102640.0,102630.0,0.86030907]
[1747285791387,0.23582638,102640.0,102630.0,0.86030907]
[1747285791686,0.23582638,102640.0,102630.0,0.8797955]
[1747285795187,0.22608388,102640.0,102630.0,0.87005233]
[1747285795615,0.22608388,102640.0,102630.0,0.8797955]
[1747285796028,0.24198388,102640.0,102630.0,0.8797955]
[1747285798272,0.25788388,102640.0,102630.0,0.87005233]
[1747285798933,0.23839859,102640.0,102630.0,0.78364085]
[1747285799060,0.23839859,102640.0,102630.0,0.79338458]
[1747285799474,0.23839859,102640.0,102630.0,0.99800301]
[1747285800880,0.2286558,102640.0,102630.0,0.99800301]
[1747285802406,0.2286558,102640.0,102630.0,0.78364085]
[1747285803395,0.2286558,102640.0,102630.0,0.37254085]
[1747285804699,0.0338,102640.0,102630.0,0.56741564]
[1747285804870,0.2286558,102640.0,102630.0,0.37254085]
[1747285808379,0.2286558,102640.0,102630.0,0.03254085]
[1747285809004,0.2286558,102640.0,102630.0,0.37254085]
[1747285813201,0.2286558,102640.0,102630.0,0.56741564]
[1747285813407,0.2286558,102640.0,102630.0,0.57715937]
[1747285819033,0.2286558,102640.0,102630.0,0.58690301]
[1747285824024,0.2286558,102640.0,102630.0,0.59664655]
[1747285824148,0.2286558,102640.0,102630.0,0.59564655]
[1747285825262,0.2286558,102640.0,102630.0,0.60539]
[1747285828780,0.2286558,102640.0,102630.0,0.59564655]
[1747285829714,0.2286558,102640.0,102630.0,0.58590301]
[1747285830960,0.2286558,102640.0,102630.0,0.37154085]
[1747285831186,0.30600654,102640.0,102630.0,0.017]
[1747285831391,0.2286558,102640.0,102630.0,0.017]
[1747285831835,0.2276558,102640.0,102630.0,0.008]
[1747285832279,0.2286558,102640.0,102630.0,0.017]
[1747285832916,0.2276558,102640.0,102630.0,0.009]
[1747285833134,0.2286558,102640.0,102630.0,0.017]
[1747285833355,0.2276558,102640.0,102630.0,0.008]
[1747285833546,0.23481833,102630.0,102620.0,0.99951007]
[1747285834384,0.23481833,102630.0,102620.0,0.58841007]
[1747285834575,0.23481833,102630.0,102620.0,0.35454085]
[1747285834798,0.23481833,102630.0,102620.0,0.36054085]
[1747285835014,0.23581833,102630.0,102620.0,0.014]
[1747285895766,0.22629378,102620.0,102600.0,1.14679118]
[1747285895991,0.19491277,102610.0,102600.0,1.24410058]
[1747285896933,0.21440309,102610.0,102600.0,1.25210058]
[1747285897074,0.21440309,102610.0,102600.0,1.26010058]
[1747285897273,0.21488548,102610.0,102600.0,1.24410058]
[1747285897685,0.21688548,102610.0,102600.0,1.61464143]
[1747285897876,0.22663054,102610.0,102600.0,1.61464143]
[1747285898090,0.22663054,102610.0,102600.0,1.60489532]
[1747285899912,0.21688576,102610.0,102600.0,1.60489532]
[1747285901613,0.21688576,102610.0,102600.0,1.61464143]
[1747285902640,0.23298576,102610.0,102600.0,1.60489532]
[1747285902832,0.24918576,102610.0,102600.0,1.60489532]
[1747285903048,0.00248239,102610.0,102600.0,1.24672124]
[1747285903365,0.01222717,102610.0,102600.0,1.61552124]
[1747285903780,0.00248239,102610.0,102600.0,1.61552124]
[1747285903908,0.01222726,102610.0,102600.0,1.61552124]
[1747285904473,0.03171748,102610.0,102600.0,1.61544124]
[1747285904764,0.03171757,102610.0,102600.0,1.61544124]
[1747285907361,0.07366292,102610.0,102600.0,1.62518744]
[1747285907601,0.07366292,102610.0,102600.0,1.25646687]
[1747285907781,0.08340836,102610.0,102600.0,1.62534687]
[1747285908245,0.06760836,102610.0,102600.0,1.62534687]
[1747285910109,0.08400836,102610.0,102600.0,1.62534687]
[1747285910680,0.08400912,102610.0,102600.0,1.62534687]
[1747285913112,0.07426349,102610.0,102600.0,1.62534687]
[1747285914765,0.08400903,102610.0,102600.0,1.62534687]
[1747285917948,0.27892237,102610.0,102600.0,1.61560095]
[1747285919309,0.26917712,102610.0,102600.0,1.60585494]
[1747285919905,0.26917712,102610.0,102600.0,1.61560095]
[1747285920948,0.07426435,102610.0,102600.0,1.62534687]
[1747285921520,0.07426435,102610.0,102600.0,1.62518687]
[1747285922345,0.26917712,102610.0,102600.0,1.61544095]
[1747285922885,0.26917712,102610.0,102600.0,1.59594883]
[1747285923146,0.25943177,102610.0,102600.0,1.59594883]
[1747285923355,0.25943177,102610.0,102600.0,1.60569494]
[1747285923777,0.25943177,102610.0,102600.0,1.61544095]
[1747285928611,0.05477337,102610.0,102600.0,1.62518687]
[1747285931752,0.05477299,102610.0,102600.0,1.62518687]
[1747285933745,0.06451853,102610.0,102600.0,1.62518687]
[1747285940577,0.26917693,102610.0,102600.0,1.60569494]
[1747285940756,0.26917693,102610.0,102600.0,1.60569532]
[1747285940948,0.26917693,102610.0,102600.0,1.61544133]
[1747285942391,0.25943177,102610.0,102600.0,1.60569532]
[1747285945306,0.24968633,102610.0,102600.0,1.60569579]
[1747285946138,0.24968633,102610.0,102600.0,1.61544209]
[1747285949786,0.24968633,102610.0,102600.0,1.61475909]
[1747285950419,0.24968633,102610.0,102600.0,1.19604348]
[1747285950420,0.23019516,102610.0,102600.0,1.19604348]
[1747285951679,0.22919516,102610.0,102600.0,1.18804348]
[1747285951903,0.22819516,102610.0,102600.0,1.18504348]
[1747285953064,0.22919516,102610.0,102600.0,1.18504348]
[1747285954951,0.22919516,102610.0,102600.0,1.00112348]
[1747285957589,0.22919516,102610.0,102600.0,1.01087006]
[1747285957813,0.22919516,102610.0,102600.0,1.20580183]
[1747285958066,0.22919516,102610.0,102600.0,1.01087006]
[1747285958442,0.22919516,102610.0,102600.0,1.00112348]
[1747285959787,0.22919516,102610.0,102600.0,1.18528348]
[1747285959996,0.22919516,102610.0,102600.0,1.38996164]
[1747285960222,0.22919516,102610.0,102600.0,1.38996183]
[1747285960430,0.22919516,102610.0,102600.0,1.39970832]
[1747285960854,0.22919516,102610.0,102600.0,1.19503006]
[1747285961061,0.22919516,102610.0,102600.0,1.20477655]
[1747285964965,0.22919516,102610.0,102600.0,1.39970832]
[1747285965371,0.22919516,102610.0,102600.0,1.21554832]
[1747285970148,0.22919516,102610.0,102600.0,1.22529471]
[1747285970978,0.22919516,102610.0,102600.0,1.21554832]
[1747285971691,0.22919516,102610.0,102600.0,1.22529471]
[1747285973361,0.22919516,102610.0,102600.0,1.21554832]
[1747285974047,0.22919516,102610.0,102600.0,1.22529471]
[1747285975090,0.22919516,102610.0,102600.0,1.00112348]
[1747285975295,0.22919516,102610.0,102600.0,1.20580183]
[1747285976387,0.22919516,102610.0,102600.0,1.21554832]
[1747285977156,0.22753941,102610.0,102600.0,1.21554832]
[1747285977707,0.22092835,102610.0,102600.0,1.21554832]
[1747285980928,0.22092835,102610.0,102600.0,1.2254336]
[1747285981064,0.22092835,102610.0,102600.0,1.01100876]
[1747285982905,0.22092835,102610.0,102600.0,1.02075534]
[1747285985151,0.22092835,102610.0,102600.0,1.01100876]
[1747285985354,0.22092835,102610.0,102600.0,0.57369936]
[1747285985560,0.22092835,102610.0,102600.0,0.91369936]
[1747285986193,0.21992835,102610.0,102600.0,0.91369936]
[1747285986596,0.22092835,102610.0,102600.0,0.91369936]
[1747285988211,0.22092835,102610.0,102600.0,0.90869936]